Workbook

Sheet STAFF-RHDR-02-005
B4: 2019-01-31 | C4: 2019-02-28 | D4: 2019-03-31 | E4: 2019-04-30 | F4: 2019-05-31 | G4: 2019-06-30 | H4: 2019-07-31 | I4: 2019-08-31 | J4: 2019-09-30 | K4: 2019-10-31 | L4: 2019-11-30 | M4: 2019-12-31 | N4: 2019
A6: Aggregate - AFUDC Eligible Spend:
A7: CWIP Beginning Balance | B7: 73794160 | C7: 75368342.43 | D7: 79778469.88 | E7: 80528406.45 | F7: 92598708.86 | G7: 51657981.17 | H7: 46005748.98 | I7: 54316809.96 | J7: 63769562.27 | K7: 50693983.91 | L7: 62138010.91 | M7: 72280412.15
A9: Prior Period Cash Cap. Ex. | B9: 14465680 | C9: 6584591.305 | D9: 9112168.174 | E9: 11051992.53 | F9: 16624730.41 | G9: 14309290.01 | H9: 13371044.42 | I9: 11998889.12 | J9: 12214389.94 | K9: 16643007.27 | L9: 15805311.32 | M9: 13767095.15
A10: 0.5 | B10: 0.5 | C10: 0.5 | D10: 0.5 | E10: 0.5 | F10: 0.5 | G10: 0.5 | H10: 0.5 | I10: 0.5 | J10: 0.5 | K10: 0.5 | L10: 0.5 | M10: 0.5
B11: =-B9*B10 -> -7232840 | C11: =-C9*C10 -> -3292295.653 | D11: =-D9*D10 -> -4556084.087 | E11: =-E9*E10 -> -5525996.264 | F11: =-F9*F10 -> -8312365.207 | G11: =-G9*G10 -> -7154645.005 | H11: =-H9*H10 -> -6685522.212 | I11: =-I9*I10 -> -5999444.561 | J11: =-J9*J10 -> -6107194.968 | K11: =-K9*K10 -> -8321503.634 | L11: =-L9*L10 -> -7902655.658 | M11: =-M9*M10 -> -6883547.576
A13: Current Period Closings | B13: -5328084.709 | C13: -5039474.402 | D13: -10642811.17 | E13: -4911993.439 | F13: -55532281.78 | G13: -19212785.95 | H13: -3889046.834 | I13: -2995087.26 | J13: -29941340.74 | K13: -4582540.409 | L13: -3886920.417 | M13: -57431215.67
A15: AFUDC Base for Calculation | B15: =B7+B11+B13 -> 61233235.29 | C15: 67036572.37 | D15: 64579574.62 | E15: 70090416.75 | F15: 28754061.87 | G15: 25290550.22 | H15: 35431179.93 | I15: 45322278.14 | J15: 27721026.56 | K15: 37789939.87 | L15: 50348434.84 | M15: 7965648.912
A17: AFUDC Debt:
A18: AFUDC Debt Rate | B18: 0.00177921057 | C18: 0.001726263165 | D18: 0.001809579687 | E18: 0.001749553643 | F18: 0.003366563415 | G18: 0.002569819898 | H18: 0.001947659785 | I18: 0.001766492652 | J18: 0.002755806705 | K18: 0.002007933932 | L18: 0.001786162604 | M18: 0.007981354944
A19: AFUDC Debt, Calculated | B19: =B15*B18 -> 108946.8195 | C19: =C15*C18 -> 115722.7656 | D19: =D15*D18 -> 116861.8864 | E19: =E15*E18 -> 122626.944 | F19: =F15*F18 -> 96802.37274 | G19: =G15*G18 -> 64992.15919 | H19: =H15*H18 -> 69007.88428 | I19: =I15*I18 -> 80061.47132 | J19: =J15*J18 -> 76393.79088 | K19: =K15*K18 -> 75879.70254 | L19: =L15*L18 -> 89930.49147 | M19: =M15*M18 -> 63576.67133 | N19: =SUM(B19:M19) -> 1080802.959
A21: AFUDC Equity:
A22: AFUDC Equity Rate | B22: 0.003408753642 | C22: 0.003307312776 | D22: 0.00346693722 | E22: 0.003351934534 | F22: 0.006449930939 | G22: 0.004923466106 | H22: 0.003731482094 | I22: 0.00338438764 | J22: 0.005279794477 | K22: 0.003846960116 | L22: 0.003422072903 | M22: 0.01529131694
A23: AFUDC Equity, Calculated | B23: =B15*B22 -> 208729.0138 | C23: 221710.9123 | D23: 223893.3309 | E23: 234938.4884 | F23: 185461.7133 | G23: 124517.1668 | H23: 132210.8135 | I23: 153388.1579 | J23: 146361.3229 | K23: 145376.3915 | L23: 172296.0146 | M23: 121805.2622 | N23: =SUM(B23:M23) -> 2070688.588
A25: AFUDC Total | B25: =B19+B23 -> 317675.8333 | C25: 337433.6779 | D25: 340755.2173 | E25: 357565.4324 | F25: 282264.086 | G25: 189509.326 | H25: 201218.6978 | I25: 233449.6293 | J25: 222755.1138 | K25: 221256.094 | L25: 262226.506 | M25: 185381.9335 | N25: =N19+N23 -> 3151491.547
J27: Allocated to Major Projects at Tab 27 | N27: 1593739
J29: Attributable to Normal Recurring Construction | N29: =N25-N27 -> 1557752.547
B33: 2020-01-31 | C33: 2020-02-29 | D33: 2020-03-31 | E33: 2020-04-30 | F33: 2020-05-31 | G33: 2020-06-30 | H33: 2020-07-31 | I33: 2020-08-31 | J33: 2020-09-30 | K33: 2020-10-31 | L33: 2020-11-30 | M33: 2020-12-31 | N33: 2020
A35: Aggregate - AFUDC Eligible Spend:
A36: CWIP Beginning Balance | B36: 26744120 | C36: 30760736.37 | D36: 35796894.9 | E36: 36173115.2 | F36: 44189476.37 | G36: 51854885.33 | H36: 47362997.18 | I36: 56076148.36 | J36: 65069521.76 | K36: 65848917.38 | L36: 74222805.32 | M36: 81455294.46
A38: Prior Period Cash Cap. Ex. | B38: 11704807.95 | C38: 7070944.437 | D38: 8019052.734 | E38: 10027753.2 | F38: 11776138.73 | G38: 11717294.22 | H38: 12673874.37 | I38: 11206580.16 | J38: 11108320.64 | K38: 10773252.87 | L38: 10365581.98 | M38: 9528284.937
A39: 0.5 | B39: 0.5 | C39: 0.5 | D39: 0.5 | E39: 0.5 | F39: 0.5 | G39: 0.5 | H39: 0.5 | I39: 0.5 | J39: 0.5 | K39: 0.5 | L39: 0.5 | M39: 0.5
B40: =-B38*B39 -> -5852403.974 | C40: =-C38*C39 -> -3535472.218 | D40: -4009526.367 | E40: -5013876.602 | F40: -5888069.367 | G40: -5858647.109 | H40: -6336937.186 | I40: -5603290.08 | J40: -5554160.321 | K40: -5386626.437 | L40: -5182790.991 | M40: -4764142.469
A42: Current Period Closings | B42: -3166862.199 | C42: -3113539.911 | D42: -9791104.8 | E42: -3941523.469 | F42: -4268018.172 | G42: -17387976.71 | H42: -2732581.853 | I42: -2396188.849 | J42: -10304523.16 | K42: -2334343.834 | L42: -2677515.491 | M42: -50756823.83
A44: AFUDC Base for Calculation | B44: =B36+B40+B42 -> 17724853.83 | C44: 24111724.24 | D44: 21996263.73 | E44: 27217715.13 | F44: 34033388.83 | G44: 28608261.51 | H44: 38293478.14 | I44: 48076669.43 | J44: 49210838.28 | K44: 58127947.11 | L44: 66362498.83 | M44: 25934328.16
A46: AFUDC Debt:
A47: AFUDC Debt Rate | B47: 0.00226956362 | C47: 0.001858220475 | D47: 0.002176102981 | E47: 0.001946277424 | F47: 0.001851004526 | G47: 0.002263977422 | H47: 0.001820298338 | I47: 0.001705049444 | J47: 0.001840028736 | K47: 0.00171813489 | L47: 0.001676538831 | M47: 0.003307869162
A48: AFUDC Debt, Calculated | B48: =B44*B47 -> 40227.68341 | C48: =C44*C47 -> 44804.89968 | D48: 47866.13508 | E48: 52973.22448 | F48: 62995.95676 | G48: 64768.45814 | H48: 69705.55461 | I48: 81973.09849 | J48: 90549.35656 | K48: 99871.65402 | L48: 111259.3062 | M48: 85787.36437 | N48: =SUM(B48:M48) -> 852782.6918
A50: AFUDC Equity:
A51: AFUDC Equity Rate | B51: 0.004348211159 | C51: 0.003560127125 | D51: 0.004169151806 | E51: 0.004731208296 | F51: 0.004499609285 | G51: 0.005503505631 | H51: 0.004424965574 | I51: 0.004144806889 | J51: 0.004472928223 | K51: 0.004176616317 | L51: 0.004075500403 | M51: 0.008039887116
A52: AFUDC Equity, Calculated | B52: =B44*B51 -> 77071.40719 | C52: 85840.80351 | D52: 91705.76266 | E52: 128772.6796 | F52: 153136.9524 | G52: 157445.7283 | H52: 169447.3225 | I52: 199268.5107 | J52: 220116.5474 | K52: 242778.1324 | L52: 270460.3907 | M52: 208509.0709 | N52: =SUM(B52:M52) -> 2004553.308
A54: AFUDC Total | B54: =B48+B52 -> 117299.0906 | C54: 130645.7032 | D54: 139571.8977 | E54: 181745.9041 | F54: 216132.9092 | G54: 222214.1864 | H54: 239152.8771 | I54: 281241.6091 | J54: 310665.904 | K54: 342649.7864 | L54: 381719.6969 | M54: 294296.4352 | N54: =N48+N52 -> 2857336
J56: Allocated to Major Projects at Tab 27 | N56: 1464347
J58: Attributable to Normal Recurring Construction | N58: =N54-N56 -> 1392989
